Workbook

Sheet glucose
B1: Input to be entered in green cells: glucose molecular weight, animal weight, concentration of glucose solution, and duration of infusion
B2: output: infusion rate settings, total volume of infusate needed, and total amount of glucose needed.
B5: glucose MW | D5: 182 | E5: conc. (M) | F5: 1 | H5: mg per ml | I5: =F5*D5 -> 182
B6: animal BW (g) = | D6: 250
B7: 200
D9: time | E9: infusion rate
D10: mm:ss | E10: uL/min
D11: 00:00:30
A12: 1080 | D12: 00:00:00 | E12: =A12/$B$7*$D$6 -> 1350 | F12: =E12/60 -> 22.5 | H12: 15 | I12: =H12*F12 -> 337.5
A13: 191 | D13: 00:00:15 | E13: 238.75 | F13: =E13/60 -> 3.979166667 | H13: 30 | I13: 119.375
A14: 97.9 | D14: =D13+$D$11 -> 00:00:45 | E14: 122.375 | F14: =E14/60 -> 2.039583333 | H14: 30 | I14: 61.1875
A15: 61.3 | D15: 00:01:15 | E15: 76.625 | F15: 1.277083333 | H15: 30 | I15: 38.3125
A16: 47.3 | D16: 00:01:45 | E16: 59.125 | F16: 0.9854166667 | H16: 30 | I16: 29.5625
A17: 37.7 | D17: 00:02:15 | E17: 47.125 | F17: 0.7854166667 | H17: 30 | I17: 23.5625
A18: 31.5 | D18: 00:02:45 | E18: 39.375 | F18: 0.65625 | H18: 30 | I18: 19.6875
A19: 27.8 | D19: 00:03:15 | E19: 34.75 | F19: 0.5791666667 | H19: 30 | I19: 17.375
A20: 25.8 | D20: 00:03:45 | E20: 32.25 | F20: 0.5375 | H20: 30 | I20: 16.125
A21: 22.4 | D21: 00:04:15 | E21: 28 | F21: 0.4666666667 | H21: 30 | I21: 14
A22: 20.9 | D22: 00:04:45 | E22: 26.125 | F22: 0.4354166667 | H22: 30 | I22: 13.0625
A23: 19.6 | D23: 00:05:15 | E23: 24.5 | F23: 0.4083333333 | H23: 30 | I23: 12.25
A24: 18.5 | D24: 00:05:45 | E24: 23.125 | F24: 0.3854166667 | H24: 30 | I24: 11.5625
A25: 17.6 | D25: 00:06:15 | E25: 22 | F25: 0.3666666667 | H25: 30 | I25: 11
A26: 16.3 | D26: 00:06:45 | E26: 20.375 | F26: 0.3395833333 | H26: 30 | I26: 10.1875
A27: 15.3 | D27: 00:07:15 | E27: 19.125 | F27: 0.31875 | H27: 30 | I27: 9.5625
A28: 14.5 | D28: 00:07:45 | E28: 18.125 | F28: 0.3020833333 | H28: 30 | I28: 9.0625
A29: 13.7 | D29: 00:08:15 | E29: 17.125 | F29: 0.2854166667 | H29: =E32*60-(SUM(H12:H28)) -> 6705 | I29: 1913.71875
D30: END
C32: duration infusion (min): | E32: 120
B36: infusate | D36: total volume (ml) | E36: =SUM(I12:I29)/1000 -> 2.66709375
B37: glucose | D37: total amount (mg) | E37: =E36*I5 -> 485.4110625

Sheet sodium-acetate
B1: Input to be entered in green cells: sodium-acetate molecular weight, animal weight, concentration of acetate solution, and duration of infusion
B2: output: infusion rate settings, total volume of infusate needed, and total amount of sodium-acetate needed.
B5: sodium-acetate MW | D5: 85 | E5: conc. (M) | F5: 2 | H5: mg per ml | I5: =F5*D5 -> 170
B6: animal BW (g) = | D6: 250
G8: 491.4
D9: time | E9: infusion rate | G9: 68
D10: mm:ss | E10: uL/min | G10: 39.4
D11: 00:00:00 | E11: =G8/210*$D$6 -> 585 | G11: =E11*0.25 -> 146.25
D12: 00:00:15 | E12: =G9/210*$D$6 -> 80.95238095 | G12: =E12*3.75 -> 303.5714286
D13: 00:04:00 | E13: =G10/210*$D$6 -> 46.9047619 | G13: =E13*(D17-4) -> 5440.952381
D14: END
B17: duration infusion (min): | D17: 120
B20: infusate | D20: total volume (ml) | E20: =SUM(G11:G14)/1000 -> 5.89077381
B21: sodium-acetate | D21: total amount (mg) | E21: =E20*I5 -> 1001.431548

Sheet notes
